[Event "Titled Tuesday Blitz November 08 Late 2022"]
[White "Rodriguez Santiago, Jaime"]
[Black "Joubert, Dantelle"]
[WhiteFideId "3100898"]
[BlackFideId "14310813"]
[WhiteElo "2025"]
[BlackElo "1507"]
[Result "0-1"]
[Round "04"]
[TimeControl "180+1"]
[Date "2022.11.09"]
[WhiteClock "0:00:55"]
[BlackClock "0:00:13"]

1. c4 {[%clk 0:03:00]}  c6 {[%clk 0:02:55]} 2. d4 {[%clk 0:02:59]}  d5 {[%clk 0:02:55]} 3. cxd5 {[%clk 0:03:00]}  cxd5 {[%clk 0:02:54]} 4. Bf4 {[%clk 0:03:00]}  Nc6 {[%clk 0:02:50]} 5. e3 {[%clk 0:03:00]}  g6 {[%clk 0:02:48]} 6. Nc3 {[%clk 0:02:59]}  Bg7 {[%clk 0:02:47]} 7. Qb3 {[%clk 0:02:43]}  Nf6 {[%clk 0:02:44]} 8. Nb5 {[%clk 0:02:33]}  Qa5+ {[%clk 0:02:33]} 9. Qc3 {[%clk 0:02:31]}  Qxc3+ {[%clk 0:02:27]} 10. bxc3 {[%clk 0:02:29]}  O-O {[%clk 0:02:08]} 11. Nc7 {[%clk 0:02:13]}  Rb8 {[%clk 0:02:05]} 12. Bd3 {[%clk 0:02:09]}  Bd7 {[%clk 0:01:51]} 13. Rb1 {[%clk 0:02:01]}  b6 {[%clk 0:01:46]} 14. Na6 {[%clk 0:01:49]}  Rbc8 {[%clk 0:01:44]} 15. Ne2 {[%clk 0:01:48]}  Na5 {[%clk 0:01:29]} 16. O-O {[%clk 0:01:39]}  Nh5 {[%clk 0:01:26]} 17. Bg3 {[%clk 0:01:32]}  Nxg3 {[%clk 0:01:25]} 18. hxg3 {[%clk 0:01:33]}  Nc4 {[%clk 0:01:22]} 19. Nb4 {[%clk 0:01:29]}  Nd2 {[%clk 0:01:18]} 20. Rbc1 {[%clk 0:01:24]}  Nxf1 {[%clk 0:01:18]} 21. Kxf1 {[%clk 0:01:25]}  e6 {[%clk 0:01:16]} 22. Ba6 {[%clk 0:01:25]}  Rc7 {[%clk 0:01:11]} 23. Nf4 {[%clk 0:01:24]}  Bc8 {[%clk 0:01:03]} 24. Bd3 {[%clk 0:01:23]}  Bb7 {[%clk 0:00:57]} 25. a4 {[%clk 0:01:20]}  Rfc8 {[%clk 0:00:56]} 26. Na2 {[%clk 0:01:17]}  Bc6 {[%clk 0:00:55]} 27. Bb5 {[%clk 0:01:11]}  Bxb5+ {[%clk 0:00:39]} 28. axb5 {[%clk 0:01:12]}  Rc4 {[%clk 0:00:38]} 29. Ke2 {[%clk 0:01:09]}  Ra4 {[%clk 0:00:37]} 30. Rc2 {[%clk 0:01:09]}  Bf8 {[%clk 0:00:31]} 31. Nd3 {[%clk 0:01:07]}  Ra3 {[%clk 0:00:29]} 32. Kd2 {[%clk 0:01:06]}  Rb3 {[%clk 0:00:28]} 33. Nab4 {[%clk 0:01:04]}  Bxb4 {[%clk 0:00:16]} 34. Nxb4 {[%clk 0:01:04]}  Rxb4 {[%clk 0:00:16]} 35. cxb4 {[%clk 0:01:04]}  Rxc2+ {[%clk 0:00:16]} 36. Kxc2 {[%clk 0:01:04]}  Kf8 {[%clk 0:00:16]} 37. Kd3 {[%clk 0:01:04]}  h5 {[%clk 0:00:16]} 38. Ke2 {[%clk 0:01:03]}  Ke7 {[%clk 0:00:16]} 39. Kf3 {[%clk 0:01:03]}  Kd7 {[%clk 0:00:16]} 40. g4 {[%clk 0:01:03]}  hxg4+ {[%clk 0:00:15]} 41. Kxg4 {[%clk 0:01:03]}  f6 {[%clk 0:00:15]} 42. f4 {[%clk 0:01:02]}  Kc7 {[%clk 0:00:13]} 43. Kh4 {[%clk 0:01:01]}  Kb7 {[%clk 0:00:13]} 44. g4 {[%clk 0:01:01]}  a6 {[%clk 0:00:12]} 45. bxa6+ {[%clk 0:00:58]}  Kxa6 {[%clk 0:00:13]} 46. f5 {[%clk 0:00:57]}  gxf5 {[%clk 0:00:12]} 47. gxf5 {[%clk 0:00:57]}  exf5 {[%clk 0:00:13]} 48. Kh5 {[%clk 0:00:58]}  Kb5 {[%clk 0:00:13]} 49. Kg6 {[%clk 0:00:58]}  Kxb4 {[%clk 0:00:14]} 50. Kxf6 {[%clk 0:00:52]}  Kc4 {[%clk 0:00:13]} 51. Ke5 {[%clk 0:00:53]}  b5 {[%clk 0:00:13]} 52. Kf4 {[%clk 0:00:52]}  b4 {[%clk 0:00:13]} 53. Kf3 {[%clk 0:00:53]}  Kc3 {[%clk 0:00:14]} 54. Ke2 {[%clk 0:00:54]}  Kb2 {[%clk 0:00:13]} 55. Kd2 {[%clk 0:00:54]}  Ka2 {[%clk 0:00:13]} 56. Kc1 {[%clk 0:00:54]}  b3 {[%clk 0:00:13]} 57. e4 {[%clk 0:00:54]}  fxe4 {[%clk 0:00:12]} 58. Kd2 {[%clk 0:00:54]}  b2 {[%clk 0:00:13]} 59. Ke3 {[%clk 0:00:55]}  b1=Q {[%clk 0:00:13]} 0-1


[Site "https://www.chess.com"]

[Event "Titled Tuesday Blitz November 08 Late 2022"]
[White "Romanchuk, Viktor"]
[Black "Yang, Kevin"]
[WhiteFideId "14109271"]
[BlackFideId "30908485"]
[WhiteElo "2242"]
[BlackElo "2055"]
[Result "1-0"]
[Round "04"]
[TimeControl "180+1"]
[Date "2022.11.09"]
[WhiteClock "0:00:17"]
[BlackClock "0:00:04"]

1. d4 {[%clk 0:03:00]}  Nf6 {[%clk 0:02:55]} 2. c4 {[%clk 0:03:00]}  e6 {[%clk 0:02:55]} 3. Nc3 {[%clk 0:03:00]}  Bb4 {[%clk 0:02:55]} 4. e3 {[%clk 0:03:00]}  O-O {[%clk 0:02:54]} 5. Ne2 {[%clk 0:03:00]}  d5 {[%clk 0:02:53]} 6. a3 {[%clk 0:03:00]}  Bd6 {[%clk 0:02:52]} 7. Ng3 {[%clk 0:02:59]}  b6 {[%clk 0:02:46]} 8. cxd5 {[%clk 0:02:57]}  exd5 {[%clk 0:02:46]} 9. Bd3 {[%clk 0:02:54]}  a5 {[%clk 0:02:44]} 10. Nh5 {[%clk 0:02:49]}  c6 {[%clk 0:02:37]} 11. O-O {[%clk 0:02:29]}  Bxh2+ {[%clk 0:01:49]} 12. Kxh2 {[%clk 0:02:24]}  Ng4+ {[%clk 0:01:49]} 13. Kg3 {[%clk 0:02:19]}  Qg5 {[%clk 0:01:48]} 14. f4 {[%clk 0:02:14]}  Qe7 {[%clk 0:00:55]} 15. Qxg4 {[%clk 0:01:10]}  Bxg4 {[%clk 0:00:54]} 16. Kxg4 {[%clk 0:01:11]}  f5+ {[%clk 0:00:44]} 17. Kf3 {[%clk 0:01:04]}  Nd7 {[%clk 0:00:36]} 18. Bd2 {[%clk 0:01:03]}  Rae8 {[%clk 0:00:27]} 19. Rh1 {[%clk 0:01:01]}  g6 {[%clk 0:00:27]} 20. Ng3 {[%clk 0:01:00]}  Nf6 {[%clk 0:00:27]} 21. Nf1 {[%clk 0:00:52]}  Ng4 {[%clk 0:00:26]} 22. Re1 {[%clk 0:00:51]}  Nf6 {[%clk 0:00:24]} 23. Nh2 {[%clk 0:00:50]}  c5 {[%clk 0:00:23]} 24. g4 {[%clk 0:00:49]}  fxg4+ {[%clk 0:00:21]} 25. Nxg4 {[%clk 0:00:49]}  Nxg4 {[%clk 0:00:22]} 26. Kxg4 {[%clk 0:00:50]}  c4 {[%clk 0:00:18]} 27. Bc2 {[%clk 0:00:49]}  b5 {[%clk 0:00:17]} 28. Kg3 {[%clk 0:00:47]}  Qd7 {[%clk 0:00:16]} 29. Nd1 {[%clk 0:00:37]}  Ra8 {[%clk 0:00:11]} 30. Nf2 {[%clk 0:00:29]}  Qd6 {[%clk 0:00:09]} 31. Ng4 {[%clk 0:00:23]}  b4 {[%clk 0:00:08]} 32. axb4 {[%clk 0:00:22]}  axb4 {[%clk 0:00:09]} 33. Ne5 {[%clk 0:00:22]}  Ra2 {[%clk 0:00:07]} 34. Bc1 {[%clk 0:00:22]}  c3 {[%clk 0:00:06]} 35. Bb3 {[%clk 0:00:21]}  Ra5 {[%clk 0:00:06]} 36. Rh4 {[%clk 0:00:19]}  h5 {[%clk 0:00:05]} 37. Bc2 {[%clk 0:00:16]}  cxb2 {[%clk 0:00:04]} 38. Bxb2 {[%clk 0:00:16]}  Ra2 {[%clk 0:00:05]} 39. Rb1 {[%clk 0:00:16]}  Rc8 {[%clk 0:00:04]} 40. Bxg6 {[%clk 0:00:16]}  Kg7 {[%clk 0:00:04]} 41. Rxh5 {[%clk 0:00:16]}  Qxg6+ {[%clk 0:00:03]} 42. Nxg6 {[%clk 0:00:16]}  Kxg6 {[%clk 0:00:03]} 43. Rg5+ {[%clk 0:00:16]}  Kf6 {[%clk 0:00:03]} 44. Rxd5 {[%clk 0:00:16]}  Rc2 {[%clk 0:00:04]} 45. Rb5 {[%clk 0:00:15]}  Rcxb2 {[%clk 0:00:04]} 46. Rxb2 {[%clk 0:00:16]}  Rxb2 {[%clk 0:00:04]} 47. Kf3 {[%clk 0:00:16]}  b3 {[%clk 0:00:05]} 48. Ke4 {[%clk 0:00:17]}  Ke6 {[%clk 0:00:06]} 49. Rb6+ {[%clk 0:00:17]}  Kd7 {[%clk 0:00:07]} 50. Ke5 {[%clk 0:00:17]}  Kc7 {[%clk 0:00:07]} 51. Rb4 {[%clk 0:00:17]}  Rb1 {[%clk 0:00:08]} 52. e4 {[%clk 0:00:18]}  b2 {[%clk 0:00:08]} 53. f5 {[%clk 0:00:18]}  Kc6 {[%clk 0:00:07]} 54. d5+ {[%clk 0:00:17]}  Kc5 {[%clk 0:00:07]} 55. Rb8 {[%clk 0:00:18]}  Kc4 {[%clk 0:00:07]} 56. f6 {[%clk 0:00:18]}  Kc3 {[%clk 0:00:06]} 57. f7 {[%clk 0:00:17]}  Rf1 {[%clk 0:00:07]} 58. Ke6 {[%clk 0:00:17]}  Kc2 {[%clk 0:00:07]} 59. e5 {[%clk 0:00:17]}  b1=Q {[%clk 0:00:05]} 60. Rxb1 {[%clk 0:00:16]}  Kxb1 {[%clk 0:00:06]} 61. d6 {[%clk 0:00:17]}  Rh1 {[%clk 0:00:04]} 62. d7 {[%clk 0:00:17]} 1-0


[Site "https://www.chess.com"]

[Event "Titled Tuesday Blitz November 08 Late 2022"]
[White "Santos Flores, Alberto"]
[Black "Shapiro, Daniel"]
[WhiteFideId "3601234"]
[BlackFideId "2001780"]
[WhiteElo "2235"]
[BlackElo "2292"]
[Result "1-0"]
[Round "04"]
[TimeControl "180+1"]
[Date "2022.11.09"]
[WhiteClock "0:00:36"]
[BlackClock "0:00:04"]

1. e4 {[%clk 0:03:00]}  e5 {[%clk 0:02:59]} 2. Nf3 {[%clk 0:03:01]}  Nc6 {[%clk 0:02:59]} 3. Bc4 {[%clk 0:03:01]}  Be7 {[%clk 0:02:59]} 4. d3 {[%clk 0:02:58]}  d6 {[%clk 0:02:57]} 5. c3 {[%clk 0:02:57]}  Nf6 {[%clk 0:02:56]} 6. O-O {[%clk 0:02:56]}  h6 {[%clk 0:02:54]} 7. Re1 {[%clk 0:02:56]}  O-O {[%clk 0:02:53]} 8. h3 {[%clk 0:02:53]}  Be6 {[%clk 0:02:51]} 9. Bb3 {[%clk 0:02:52]}  Qd7 {[%clk 0:02:39]} 10. Nbd2 {[%clk 0:02:50]}  Kh7 {[%clk 0:02:15]} 11. Nf1 {[%clk 0:02:45]}  g5 {[%clk 0:02:08]} 12. g4 {[%clk 0:02:21]}  Bxg4 {[%clk 0:01:54]} 13. hxg4 {[%clk 0:02:22]}  Qxg4+ {[%clk 0:01:54]} 14. Ng3 {[%clk 0:02:22]}  Nd8 {[%clk 0:01:11]} 15. Nh2 {[%clk 0:02:10]}  Qh3 {[%clk 0:01:03]} 16. Nf5 {[%clk 0:02:00]}  Ng8 {[%clk 0:01:00]} 17. Qf3 {[%clk 0:01:59]}  Qxf3 {[%clk 0:00:57]} 18. Nxf3 {[%clk 0:02:00]}  Ne6 {[%clk 0:00:57]} 19. Kg2 {[%clk 0:01:55]}  Rae8 {[%clk 0:00:53]} 20. Rh1 {[%clk 0:01:55]}  Kg6 {[%clk 0:00:53]} 21. Be3 {[%clk 0:01:50]}  Bd8 {[%clk 0:00:42]} 22. Rag1 {[%clk 0:01:48]}  Nf4+ {[%clk 0:00:38]} 23. Bxf4 {[%clk 0:01:48]}  exf4 {[%clk 0:00:38]} 24. Kf1 {[%clk 0:01:45]}  c6 {[%clk 0:00:24]} 25. Rg2 {[%clk 0:01:43]}  d5 {[%clk 0:00:21]} 26. Nd2 {[%clk 0:01:37]}  dxe4 {[%clk 0:00:21]} 27. dxe4 {[%clk 0:01:38]}  Bf6 {[%clk 0:00:19]} 28. f3 {[%clk 0:01:32]}  Rd8 {[%clk 0:00:19]} 29. Bc2 {[%clk 0:01:23]}  h5 {[%clk 0:00:17]} 30. Nc4 {[%clk 0:01:13]}  Ne7 {[%clk 0:00:15]} 31. Nxe7+ {[%clk 0:00:56]}  Bxe7 {[%clk 0:00:13]} 32. e5+ {[%clk 0:00:56]}  Kh6 {[%clk 0:00:12]} 33. Rxh5+ {[%clk 0:00:51]}  Kg7 {[%clk 0:00:08]} 34. Rh7+ {[%clk 0:00:49]}  Kg8 {[%clk 0:00:08]} 35. Rgh2 {[%clk 0:00:49]}  f5 {[%clk 0:00:08]} 36. Bb3 {[%clk 0:00:39]}  Rd5 {[%clk 0:00:05]} 37. Rxe7 {[%clk 0:00:37]}  b5 {[%clk 0:00:04]} 38. Nd6 {[%clk 0:00:37]}  g4 {[%clk 0:00:04]} 39. Bxd5+ {[%clk 0:00:36]}  cxd5 {[%clk 0:00:04]} 40. Rhh7 {[%clk 0:00:36]} 1-0


[Site "https://www.chess.com"]

[Event "Titled Tuesday Blitz November 08 Late 2022"]
[White "Sargsyan, Anna M."]
[Black "Haszon, David"]
[WhiteFideId "13308130"]
[BlackFideId "733610"]
[WhiteElo "2284"]
[BlackElo "2211"]
[Result "1-0"]
[Round "04"]
[TimeControl "180+1"]
[Date "2022.11.09"]
[WhiteClock "0:00:56"]
[BlackClock "0:00:43"]

1. d4 {[%clk 0:02:58]}  Nf6 {[%clk 0:02:59]} 2. c4 {[%clk 0:02:59]}  e6 {[%clk 0:03:00]} 3. Nf3 {[%clk 0:02:58]}  d5 {[%clk 0:02:58]} 4. Nc3 {[%clk 0:02:56]}  Nbd7 {[%clk 0:02:55]} 5. Bg5 {[%clk 0:02:55]}  c6 {[%clk 0:02:52]} 6. e3 {[%clk 0:02:51]}  Be7 {[%clk 0:02:51]} 7. Qc2 {[%clk 0:02:31]}  O-O {[%clk 0:02:50]} 8. Rd1 {[%clk 0:02:29]}  a6 {[%clk 0:02:29]} 9. h3 {[%clk 0:02:27]}  h6 {[%clk 0:02:24]} 10. Bh4 {[%clk 0:02:26]}  Nh5 {[%clk 0:02:24]} 11. Bxe7 {[%clk 0:02:25]}  Qxe7 {[%clk 0:02:25]} 12. Bd3 {[%clk 0:02:21]}  f5 {[%clk 0:02:24]} 13. cxd5 {[%clk 0:02:18]}  exd5 {[%clk 0:02:24]} 14. Bxf5 {[%clk 0:02:15]}  Nb6 {[%clk 0:02:10]} 15. Bxc8 {[%clk 0:02:14]}  Raxc8 {[%clk 0:02:11]} 16. Ne5 {[%clk 0:02:01]}  Rf6 {[%clk 0:01:50]} 17. O-O {[%clk 0:02:00]}  g5 {[%clk 0:01:45]} 18. Qb3 {[%clk 0:01:43]}  Qd8 {[%clk 0:01:28]} 19. Ne4 {[%clk 0:01:25]}  Rf8 {[%clk 0:01:22]} 20. Nc5 {[%clk 0:01:24]}  Re8 {[%clk 0:01:01]} 21. Nxb7 {[%clk 0:01:19]}  Qc7 {[%clk 0:01:02]} 22. Nc5 {[%clk 0:01:19]}  Nf6 {[%clk 0:01:00]} 23. Nxa6 {[%clk 0:01:17]}  Qa7 {[%clk 0:00:58]} 24. Nc5 {[%clk 0:01:13]}  Kg7 {[%clk 0:00:54]} 25. Qc2 {[%clk 0:01:07]}  Ne4 {[%clk 0:00:47]} 26. Nxe4 {[%clk 0:01:06]}  dxe4 {[%clk 0:00:48]} 27. Qxe4 {[%clk 0:01:06]}  Re6 {[%clk 0:00:48]} 28. f4 {[%clk 0:01:04]}  Nd5 {[%clk 0:00:44]} 29. fxg5 {[%clk 0:01:01]}  hxg5 {[%clk 0:00:43]} 30. Rf5 {[%clk 0:00:57]}  Qe7 {[%clk 0:00:43]} 31. Rdf1 {[%clk 0:00:56]} 1-0


[Site "https://www.chess.com"]

[Event "Titled Tuesday Blitz November 08 Late 2022"]
[White "Silva, Caio Henrique Angelico"]
[Black "Ferreira, Vitor Hugo Vieira"]
[WhiteFideId "22777210"]
[BlackFideId "2119765"]
[WhiteElo "1990"]
[BlackElo "2168"]
[Result "0-1"]
[Round "04"]
[TimeControl "180+1"]
[Date "2022.11.09"]
[WhiteClock "0:00:13"]
[BlackClock "0:00:15"]

1. Nf3 {[%clk 0:03:00]}  Nf6 {[%clk 0:02:59]} 2. b3 {[%clk 0:02:59]}  d5 {[%clk 0:02:59]} 3. Bb2 {[%clk 0:03:00]}  c6 {[%clk 0:02:58]} 4. g3 {[%clk 0:03:01]}  Bg4 {[%clk 0:02:57]} 5. Bg2 {[%clk 0:03:01]}  Nbd7 {[%clk 0:02:57]} 6. O-O {[%clk 0:03:02]}  e6 {[%clk 0:02:58]} 7. c4 {[%clk 0:02:58]}  Be7 {[%clk 0:02:53]} 8. Nc3 {[%clk 0:02:58]}  O-O {[%clk 0:02:53]} 9. Rc1 {[%clk 0:02:58]}  h6 {[%clk 0:02:48]} 10. d3 {[%clk 0:02:48]}  Qa5 {[%clk 0:02:48]} 11. a3 {[%clk 0:02:43]}  Rad8 {[%clk 0:02:46]} 12. b4 {[%clk 0:02:42]}  Qb6 {[%clk 0:02:44]} 13. Qa4 {[%clk 0:02:38]}  Rfe8 {[%clk 0:02:42]} 14. e4 {[%clk 0:02:16]}  dxe4 {[%clk 0:02:29]} 15. dxe4 {[%clk 0:02:13]}  Bxf3 {[%clk 0:02:16]} 16. Bxf3 {[%clk 0:02:12]}  Ne5 {[%clk 0:02:16]} 17. Be2 {[%clk 0:02:06]}  Nd3 {[%clk 0:02:15]} 18. Bxd3 {[%clk 0:01:50]}  Rxd3 {[%clk 0:02:16]} 19. e5 {[%clk 0:01:50]}  Ng4 {[%clk 0:02:14]} 20. c5 {[%clk 0:01:45]}  Bxc5 {[%clk 0:02:05]} 21. bxc5 {[%clk 0:01:03]}  Qxb2 {[%clk 0:02:02]} 22. Qc4 {[%clk 0:01:04]}  Nxe5 {[%clk 0:01:55]} 23. Qb4 {[%clk 0:00:57]}  Rd2 {[%clk 0:01:32]} 24. Ne4 {[%clk 0:00:54]}  Qxb4 {[%clk 0:01:23]} 25. axb4 {[%clk 0:00:55]}  Rd4 {[%clk 0:01:22]} 26. Nd6 {[%clk 0:00:50]}  Re7 {[%clk 0:01:22]} 27. Rb1 {[%clk 0:00:43]}  a6 {[%clk 0:01:19]} 28. Rfd1 {[%clk 0:00:39]}  Rxd1+ {[%clk 0:01:05]} 29. Rxd1 {[%clk 0:00:38]}  Rd7 {[%clk 0:01:06]} 30. Rb1 {[%clk 0:00:30]}  f6 {[%clk 0:01:02]} 31. f4 {[%clk 0:00:27]}  Nf7 {[%clk 0:01:02]} 32. Nc4 {[%clk 0:00:26]}  e5 {[%clk 0:01:00]} 33. fxe5 {[%clk 0:00:25]}  Nxe5 {[%clk 0:01:00]} 34. Nd6 {[%clk 0:00:26]}  Nf7 {[%clk 0:00:59]} 35. Nc4 {[%clk 0:00:23]}  Re7 {[%clk 0:00:51]} 36. Rd1 {[%clk 0:00:22]}  Ne5 {[%clk 0:00:41]} 37. Rd8+ {[%clk 0:00:20]}  Kh7 {[%clk 0:00:41]} 38. Nd6 {[%clk 0:00:21]}  Nf7 {[%clk 0:00:28]} 39. Nxf7 {[%clk 0:00:13]}  Rxf7 {[%clk 0:00:28]} 40. Kf2 {[%clk 0:00:14]}  b6 {[%clk 0:00:24]} 41. Rc8 {[%clk 0:00:10]}  bxc5 {[%clk 0:00:24]} 42. bxc5 {[%clk 0:00:11]}  Ra7 {[%clk 0:00:24]} 43. Rxc6 {[%clk 0:00:11]}  a5 {[%clk 0:00:25]} 44. Rb6 {[%clk 0:00:10]}  a4 {[%clk 0:00:25]} 45. Rb2 {[%clk 0:00:09]}  a3 {[%clk 0:00:26]} 46. Ra2 {[%clk 0:00:10]}  Kg6 {[%clk 0:00:26]} 47. c6 {[%clk 0:00:10]}  Kf5 {[%clk 0:00:26]} 48. c7 {[%clk 0:00:10]}  Rxc7 {[%clk 0:00:26]} 49. Rxa3 {[%clk 0:00:10]}  Rc2+ {[%clk 0:00:26]} 50. Kg1 {[%clk 0:00:10]}  Kg4 {[%clk 0:00:25]} 51. Ra4+ {[%clk 0:00:09]}  Kf3 {[%clk 0:00:18]} 52. Rf4+ {[%clk 0:00:09]}  Ke3 {[%clk 0:00:18]} 53. Rg4 {[%clk 0:00:10]}  g5 {[%clk 0:00:18]} 54. Rb4 {[%clk 0:00:10]}  f5 {[%clk 0:00:17]} 55. Rb6 {[%clk 0:00:10]}  f4 {[%clk 0:00:17]} 56. gxf4 {[%clk 0:00:10]}  gxf4 {[%clk 0:00:17]} 57. Rxh6 {[%clk 0:00:10]}  Rc1+ {[%clk 0:00:14]} 58. Kg2 {[%clk 0:00:11]}  f3+ {[%clk 0:00:15]} 59. Kg3 {[%clk 0:00:09]}  Rg1+ {[%clk 0:00:15]} 60. Kh3 {[%clk 0:00:10]}  f2 {[%clk 0:00:15]} 61. Re6+ {[%clk 0:00:11]}  Kd4 {[%clk 0:00:14]} 62. Rf6 {[%clk 0:00:11]}  f1=Q+ {[%clk 0:00:14]} 63. Rxf1 {[%clk 0:00:11]}  Rxf1 {[%clk 0:00:15]} 64. Kg4 {[%clk 0:00:12]}  Ke5 {[%clk 0:00:15]} 65. h4 {[%clk 0:00:13]}  Kf6 {[%clk 0:00:15]} 0-1


[Site "https://www.chess.com"]

[Event "Titled Tuesday Blitz November 08 Late 2022"]
[White "Sivakumar, Shaaketh"]
[Black "Fernandez De La Vara, Arnaldo"]
[WhiteFideId "30940176"]
[BlackFideId "3518388"]
[WhiteElo "2174"]
[BlackElo "2387"]
[Result "0-1"]
[Round "04"]
[TimeControl "180+1"]
[Date "2022.11.09"]
[WhiteClock "0:00:06"]
[BlackClock "0:00:37"]

1. d4 {[%clk 0:02:53]}  c5 {[%clk 0:03:00]} 2. d5 {[%clk 0:02:52]}  Nf6 {[%clk 0:03:01]} 3. Nc3 {[%clk 0:02:49]}  a6 {[%clk 0:03:01]} 4. a4 {[%clk 0:02:44]}  d6 {[%clk 0:03:02]} 5. e4 {[%clk 0:02:44]}  g6 {[%clk 0:02:58]} 6. Be3 {[%clk 0:02:44]}  Bg7 {[%clk 0:02:57]} 7. f3 {[%clk 0:02:44]}  Nbd7 {[%clk 0:02:54]} 8. Qd2 {[%clk 0:02:44]}  Rb8 {[%clk 0:02:48]} 9. a5 {[%clk 0:02:42]}  b5 {[%clk 0:02:47]} 10. axb6 {[%clk 0:02:42]}  Qxb6 {[%clk 0:02:47]} 11. Ra2 {[%clk 0:02:41]}  O-O {[%clk 0:02:44]} 12. Nh3 {[%clk 0:02:38]}  e6 {[%clk 0:02:41]} 13. dxe6 {[%clk 0:02:38]}  fxe6 {[%clk 0:02:40]} 14. Be2 {[%clk 0:02:34]}  Bb7 {[%clk 0:02:26]} 15. O-O {[%clk 0:02:34]}  d5 {[%clk 0:02:25]} 16. exd5 {[%clk 0:02:32]}  exd5 {[%clk 0:02:24]} 17. Na4 {[%clk 0:02:31]}  Qc7 {[%clk 0:02:13]} 18. Bf4 {[%clk 0:02:25]}  Ne5 {[%clk 0:02:08]} 19. Nxc5 {[%clk 0:02:24]}  Qxc5+ {[%clk 0:02:01]} 20. Kh1 {[%clk 0:02:14]}  d4 {[%clk 0:01:47]} 21. Ra5 {[%clk 0:02:06]}  Ne4 {[%clk 0:01:11]} 22. Rxc5 {[%clk 0:01:46]}  Nxd2 {[%clk 0:01:11]} 23. Bxd2 {[%clk 0:01:37]}  Rfc8 {[%clk 0:01:11]} 24. Bb4 {[%clk 0:01:32]}  a5 {[%clk 0:01:11]} 25. Rxa5 {[%clk 0:01:21]}  Rxc2 {[%clk 0:01:10]} 26. Bb5 {[%clk 0:01:11]}  Nc6 {[%clk 0:01:06]} 27. Bxc6 {[%clk 0:01:08]}  Bxc6 {[%clk 0:01:07]} 28. Ba3 {[%clk 0:01:07]}  d3 {[%clk 0:01:05]} 29. Rd1 {[%clk 0:00:52]}  d2 {[%clk 0:01:05]} 30. b3 {[%clk 0:00:28]}  Rxb3 {[%clk 0:01:00]} 31. Nf2 {[%clk 0:00:22]}  Bc3 {[%clk 0:00:50]} 32. Rc5 {[%clk 0:00:19]}  Rxa3 {[%clk 0:00:40]} 33. Rxc6 {[%clk 0:00:19]}  Rc1 {[%clk 0:00:41]} 34. Rc8+ {[%clk 0:00:13]}  Kg7 {[%clk 0:00:38]} 35. Rc7+ {[%clk 0:00:13]}  Kf8 {[%clk 0:00:39]} 36. Rc8+ {[%clk 0:00:12]}  Kf7 {[%clk 0:00:38]} 37. Rc7+ {[%clk 0:00:07]}  Ke8 {[%clk 0:00:38]} 38. Kg1 {[%clk 0:00:05]}  Rxd1+ {[%clk 0:00:38]} 39. Nxd1 {[%clk 0:00:04]}  Ra1 {[%clk 0:00:39]} 40. Rxc3 {[%clk 0:00:04]}  Rxd1+ {[%clk 0:00:39]} 41. Kf2 {[%clk 0:00:05]}  Rf1+ {[%clk 0:00:36]} 42. Kxf1 {[%clk 0:00:05]}  d1=Q+ {[%clk 0:00:36]} 43. Kf2 {[%clk 0:00:06]}  Qd2+ {[%clk 0:00:37]} 0-1


[Site "https://www.chess.com"]

[Event "Titled Tuesday Blitz November 08 Late 2022"]
[White "Sourath Biswas"]
[Black "De Souza, Cristiano Gomes"]
[WhiteFideId "35091484"]
[BlackFideId "2151758"]
[WhiteElo "2164"]
[BlackElo "2068"]
[Result "1-0"]
[Round "04"]
[TimeControl "180+1"]
[Date "2022.11.09"]
[WhiteClock "0:01:14"]
[BlackClock "0:00:58"]

1. d4 {[%clk 0:03:00]}  Nf6 {[%clk 0:02:58]} 2. Bf4 {[%clk 0:03:01]}  g6 {[%clk 0:02:58]} 3. e3 {[%clk 0:03:01]}  Bg7 {[%clk 0:02:59]} 4. h4 {[%clk 0:03:02]}  h6 {[%clk 0:02:57]} 5. Nc3 {[%clk 0:02:58]}  d6 {[%clk 0:02:56]} 6. Bd3 {[%clk 0:02:58]}  c6 {[%clk 0:02:56]} 7. f3 {[%clk 0:02:51]}  b5 {[%clk 0:02:55]} 8. g4 {[%clk 0:02:51]}  b4 {[%clk 0:02:55]} 9. Nce2 {[%clk 0:02:51]}  Nd5 {[%clk 0:02:53]} 10. Qd2 {[%clk 0:02:49]}  e5 {[%clk 0:02:48]} 11. dxe5 {[%clk 0:02:43]}  dxe5 {[%clk 0:02:48]} 12. Bg3 {[%clk 0:02:42]}  Qb6 {[%clk 0:02:45]} 13. Bf2 {[%clk 0:02:39]}  Qb7 {[%clk 0:02:31]} 14. e4 {[%clk 0:02:38]}  Nf4 {[%clk 0:02:26]} 15. Bc5 {[%clk 0:02:31]}  a5 {[%clk 0:02:17]} 16. Nxf4 {[%clk 0:02:19]}  exf4 {[%clk 0:02:16]} 17. c3 {[%clk 0:02:20]}  Nd7 {[%clk 0:02:11]} 18. Bd6 {[%clk 0:02:14]}  c5 {[%clk 0:02:03]} 19. Ne2 {[%clk 0:02:10]}  Qc6 {[%clk 0:01:59]} 20. Qxf4 {[%clk 0:02:10]}  Ba6 {[%clk 0:01:47]} 21. Rd1 {[%clk 0:02:06]}  Bxd3 {[%clk 0:01:46]} 22. Rxd3 {[%clk 0:02:07]}  O-O-O {[%clk 0:01:40]} 23. Qxf7 {[%clk 0:01:55]}  Rhg8 {[%clk 0:01:31]} 24. O-O {[%clk 0:01:50]}  Be5 {[%clk 0:01:17]} 25. Rfd1 {[%clk 0:01:46]}  Rg7 {[%clk 0:01:13]} 26. Qe6 {[%clk 0:01:46]}  Bxd6 {[%clk 0:01:08]} 27. Rxd6 {[%clk 0:01:47]}  Qb7 {[%clk 0:01:07]} 28. Rc6+ {[%clk 0:01:13]}  Kb8 {[%clk 0:01:04]} 29. Qd6+ {[%clk 0:01:14]}  Ka7 {[%clk 0:00:58]} 30. Rc7 {[%clk 0:01:14]} 1-0


[Site "https://www.chess.com"]

[Event "Titled Tuesday Blitz November 08 Late 2022"]
[White "Suarez Uriel, Adrian"]
[Black "Clawitter, Craig"]
[WhiteFideId "22230874"]
[BlackFideId "2023105"]
[WhiteElo "2331"]
[BlackElo "2169"]
[Result "1-0"]
[Round "04"]
[TimeControl "180+1"]
[Date "2022.11.09"]
[WhiteClock "0:01:27"]
[BlackClock "0:00:06"]

1. d4 {[%clk 0:03:00]}  e6 {[%clk 0:03:00]} 2. c4 {[%clk 0:03:00]}  Nf6 {[%clk 0:03:00]} 3. Nf3 {[%clk 0:02:59]}  d5 {[%clk 0:02:57]} 4. g3 {[%clk 0:02:56]}  Be7 {[%clk 0:02:56]} 5. Bg2 {[%clk 0:02:55]}  O-O {[%clk 0:02:56]} 6. O-O {[%clk 0:02:55]}  dxc4 {[%clk 0:02:57]} 7. a4 {[%clk 0:02:54]}  c5 {[%clk 0:02:53]} 8. dxc5 {[%clk 0:02:52]}  Qc7 {[%clk 0:02:42]} 9. Qc2 {[%clk 0:02:51]}  Qxc5 {[%clk 0:02:39]} 10. Be3 {[%clk 0:02:47]}  Qh5 {[%clk 0:02:37]} 11. Nbd2 {[%clk 0:02:45]}  Nc6 {[%clk 0:02:31]} 12. Nxc4 {[%clk 0:02:44]}  e5 {[%clk 0:02:21]} 13. Rfd1 {[%clk 0:02:22]}  Bh3 {[%clk 0:01:53]} 14. Bxh3 {[%clk 0:02:20]}  Qxh3 {[%clk 0:01:52]} 15. Ncxe5 {[%clk 0:02:21]}  Nxe5 {[%clk 0:01:48]} 16. Nxe5 {[%clk 0:02:22]}  Rac8 {[%clk 0:01:45]} 17. Qb3 {[%clk 0:02:22]}  Bc5 {[%clk 0:01:36]} 18. Rac1 {[%clk 0:02:15]}  Bxe3 {[%clk 0:01:29]} 19. Qxe3 {[%clk 0:02:14]}  Rfe8 {[%clk 0:01:19]} 20. Rxc8 {[%clk 0:02:09]}  Qxc8 {[%clk 0:01:16]} 21. Qd4 {[%clk 0:02:03]}  Qh3 {[%clk 0:00:51]} 22. b4 {[%clk 0:01:54]}  h5 {[%clk 0:00:39]} 23. e3 {[%clk 0:01:38]}  g6 {[%clk 0:00:13]} 24. Nf3 {[%clk 0:01:35]}  Ng4 {[%clk 0:00:09]} 25. Qxa7 {[%clk 0:01:30]}  Re6 {[%clk 0:00:07]} 26. Rd8+ {[%clk 0:01:27]}  Kh7 {[%clk 0:00:06]} 27. Qd4 {[%clk 0:01:28]}  Rf6 {[%clk 0:00:06]} 28. Ng5+ {[%clk 0:01:27]} 1-0


[Site "https://www.chess.com"]